[Event "The Elitserien 2024/25: round 1 - 3"]
[Site "Scandic Infra City, Kanalvagen 10, Upplands Vasby, Sweden"]
[Date "2024.10.05"]
[Round "2.13"]
[White "Gajic, Mladen"]
[Black "Thornert, Hakan"]
[Result "1/2-1/2"]
[TimeControl "90 minutes for 40 moves + 30 minutes for the rest of the game + 30 seconds per move from move one."]
[WhiteTitle "FM"]
[WhiteFideId "1709178"]
[BlackFideId "1703749"]
[WhiteElo "2294"]
[BlackElo "2163"]

1. e4 {[%clk 01:23:26]} {[%emt 00:07:33]} c5 {[%clk 01:30:25]} {[%emt
00:00:35]} 2. c3 {[%clk 01:23:53]} {[%emt 00:00:04]} Nf6 {[%clk 01:30:43]}
{[%emt 00:00:12]} 3. e5 {[%clk 01:24:18]} {[%emt 00:00:05]} Nd5 {[%clk
01:31:07]} {[%emt 00:00:05]} 4. Bc4 {[%clk 01:24:20]} {[%emt 00:00:28]} Nb6
{[%clk 01:31:11]} {[%emt 00:00:26]} 5. Bb3 {[%clk 01:24:49]} {[%emt 00:00:01]}
d5 {[%clk 01:31:15]} {[%emt 00:00:26]} 6. exd6 {[%clk 01:25:03]} {[%emt
00:00:16]} Qxd6 {[%clk 01:31:22]} {[%emt 00:00:23]} 7. d4 {[%clk 01:22:07]}
{[%emt 00:03:25]} cxd4 {[%clk 01:30:53]} {[%emt 00:01:00]} 8. Nf3 {[%clk
01:22:08]} {[%emt 00:00:29]} Nc6 {[%clk 01:30:29]} {[%emt 00:00:54]} 9. O-O
{[%clk 01:21:50]} {[%emt 00:00:47]} Be6 {[%clk 01:30:17]} {[%emt 00:00:43]} 10.
Bxe6 {[%clk 01:20:50]} {[%emt 00:01:31]} Qxe6 {[%clk 01:29:17]} {[%emt
00:01:29]} 11. Nxd4 {[%clk 01:21:14]} {[%emt 00:00:06]} Nxd4 {[%clk 01:29:11]}
{[%emt 00:00:36]} 12. Qxd4 {[%clk 01:21:42]} {[%emt 00:00:03]} Rd8 {[%clk
01:27:37]} {[%emt 00:02:03]} 13. Qe3 {[%clk 01:09:44]} {[%emt 00:12:27]} Qxe3
{[%clk 01:26:06]} {[%emt 00:02:03]} 14. Bxe3 {[%clk 01:10:06]} {[%emt
00:00:07]} Nc4 {[%clk 01:26:21]} {[%emt 00:00:15]} 15. Bxa7 {[%clk 01:07:31]}
{[%emt 00:03:06]} Nxb2 {[%clk 01:26:20]} {[%emt 00:00:30]} 16. Na3 {[%clk
01:06:56]} {[%emt 00:01:05]} e6 {[%clk 01:19:27]} {[%emt 00:07:23]} 17. Nb5
{[%clk 01:00:11]} {[%emt 00:07:15]} Be7 {[%clk 01:04:38]} {[%emt 00:15:20]} 18.
Bb6 {[%clk 00:37:20]} {[%emt 00:23:20]} Rc8 {[%clk 01:00:25]} {[%emt 00:04:43]}
19. a4 {[%clk 00:31:13]} {[%emt 00:06:37]} O-O {[%clk 00:56:56]} {[%emt
00:03:59]} 20. Rfb1 {[%clk 00:27:12]} {[%emt 00:04:30]} Nc4 {[%clk 00:56:33]}
{[%emt 00:00:54]} 21. Na7 {[%clk 00:18:00]} {[%emt 00:09:42]} Ra8 {[%clk
00:52:50]} {[%emt 00:04:13]} 22. Bd4 {[%clk 00:04:41]} {[%emt 00:13:49]} Rfb8
{[%clk 00:28:52]} {[%emt 00:24:28]} 23. a5 {[%clk 00:03:41]} {[%emt 00:01:30]}
e5 {[%clk 00:25:54]} {[%emt 00:03:28]} 24. a6 {[%clk 00:02:45]} {[%emt
00:01:26]} bxa6 {[%clk 00:18:14]} {[%emt 00:08:09]} 25. Rxb8+ {[%clk 00:02:54]}
{[%emt 00:00:22]} Rxb8 {[%clk 00:18:35]} {[%emt 00:00:09]} 26. Nc6 {[%clk
00:03:22]} {[%emt 00:00:02]} Re8 {[%clk 00:17:17]} {[%emt 00:01:49]} 27. Nxe5
{[%clk 00:00:39]} {[%emt 00:03:13]} Nxe5 {[%clk 00:16:01]} {[%emt 00:01:46]} 28.
Bxe5 {[%clk 00:01:06]} {[%emt 00:00:03]} Bc5 {[%clk 00:15:25]} {[%emt
00:01:04]} 29. Bg3 {[%clk 00:01:32]} {[%emt 00:00:05]} Re6 {[%clk 00:15:04]}
{[%emt 00:00:50]} 30. Kf1 {[%clk 00:01:49]} {[%emt 00:00:13]} f6 {[%clk
00:14:20]} {[%emt 00:01:15]} 31. Ra5 {[%clk 00:01:42]} {[%emt 00:00:36]} Ba7
{[%clk 00:13:16]} {[%emt 00:01:35]} 32. Rd5 {[%clk 00:01:46]} {[%emt 00:00:25]}
Kf7 {[%clk 00:12:47]} {[%emt 00:01:00]} 33. Rd7+ {[%clk 00:02:08]} {[%emt
00:00:08]} Re7 {[%clk 00:13:05]} {[%emt 00:00:12]} 34. Rd5 {[%clk 00:01:57]}
{[%emt 00:00:41]} Re6 {[%clk 00:10:40]} {[%emt 00:02:54]} 35. Rd7+ {[%clk
00:00:47]} {[%emt 00:01:40]} Re7 {[%clk 00:11:03]} {[%emt 00:00:07]} 36. Rd6
{[%clk 00:00:56]} {[%emt 00:00:22]} Re6 {[%clk 00:11:09]} {[%emt 00:00:24]} 37.
Rd7+ {[%emt 00:00:02]} 1/2-1/2

[Event "The Elitserien 2024/25: round 1 - 3"]
[Site "Scandic Infra City, Kanalvagen 10, Upplands Vasby, Sweden"]
[Date "2024.10.05"]
[Round "2.14"]
[White "Malesevic, Nedeljko"]
[Black "Seiger, Vidar"]
[Result "1/2-1/2"]
[TimeControl "90 minutes for 40 moves + 30 minutes for the rest of the game + 30 seconds per move from move one."]
[WhiteTitle "FM"]
[WhiteFideId "1703447"]
[BlackFideId "1756079"]
[WhiteElo "2230"]
[BlackElo "2010"]

1. d4 {[%clk 01:30:58]} {[%emt 00:00:02]} Nf6 {[%clk 01:26:35]} {[%emt
00:04:25]} 2. c4 {[%clk 01:31:16]} {[%emt 00:00:12]} g6 {[%clk 01:26:59]}
{[%emt 00:00:06]} 3. Nc3 {[%clk 01:31:27]} {[%emt 00:00:18]} Bg7 {[%clk
01:27:22]} {[%emt 00:00:08]} 4. e4 {[%clk 01:31:43]} {[%emt 00:00:15]} O-O
{[%clk 01:27:39]} {[%emt 00:00:13]} 5. Bd3 {[%clk 01:31:27]} {[%emt 00:00:45]}
d6 {[%clk 01:27:18]} {[%emt 00:00:52]} 6. Nge2 {[%clk 01:31:31]} {[%emt
00:00:25]} c5 {[%clk 01:25:55]} {[%emt 00:01:55]} 7. d5 {[%clk 01:30:54]}
{[%emt 00:01:06]} e6 {[%clk 01:26:16]} {[%emt 00:00:09]} 8. O-O {[%clk
01:29:43]} {[%emt 00:01:41]} a6 {[%clk 01:23:59]} {[%emt 00:02:47]} 9. a4
{[%clk 01:26:03]} {[%emt 00:04:10]} Re8 {[%clk 01:23:23]} {[%emt 00:01:07]} 10.
h3 {[%clk 01:24:31]} {[%emt 00:02:01]} exd5 {[%clk 01:18:14]} {[%emt 00:05:39]}
11. exd5 {[%clk 01:23:55]} {[%emt 00:01:06]} Nbd7 {[%clk 01:09:43]} {[%emt
00:09:02]} 12. Ng3 {[%clk 01:15:13]} {[%emt 00:09:11]} Nf8 {[%clk 00:59:21]}
{[%emt 00:10:52]} 13. Bf4 {[%clk 01:05:55]} {[%emt 00:09:47]} Qc7 {[%clk
00:49:47]} {[%emt 00:10:04]} 14. Qd2 {[%clk 01:00:16]} {[%emt 00:06:09]} N6d7
{[%clk 00:44:54]} {[%emt 00:05:23]} 15. Bh6 {[%clk 00:53:43]} {[%emt 00:07:03]}
Bxh6 {[%clk 00:41:48]} {[%emt 00:03:36]} 16. Qxh6 {[%clk 00:53:54]} {[%emt
00:00:19]} Ne5 {[%clk 00:40:43]} {[%emt 00:01:36]} 17. Rfe1 {[%clk 00:49:19]}
{[%emt 00:05:04]} f5 {[%clk 00:36:13]} {[%emt 00:05:00]} 18. Qd2 {[%clk
00:44:05]} {[%emt 00:05:44]} Bd7 {[%clk 00:36:06]} {[%emt 00:00:37]} 19. Bf1
{[%clk 00:43:33]} {[%emt 00:01:03]} Nf7 {[%clk 00:34:05]} {[%emt 00:02:31]} 20.
f4 {[%clk 00:36:49]} {[%emt 00:07:14]} Rxe1 {[%clk 00:29:32]} {[%emt 00:05:03]}
21. Rxe1 {[%clk 00:34:18]} {[%emt 00:03:00]} Re8 {[%clk 00:29:57]} {[%emt
00:00:06]} 22. Bd3 {[%clk 00:33:06]} {[%emt 00:01:41]} Qd8 {[%clk 00:30:14]}
{[%emt 00:00:12]} 23. Rxe8 {[%clk 00:24:40]} {[%emt 00:08:57]} Qxe8 {[%clk
00:30:31]} {[%emt 00:00:14]} 24. a5 {[%clk 00:24:49]} {[%emt 00:00:21]} Qd8
{[%clk 00:25:29]} {[%emt 00:05:32]} 25. Nd1 {[%clk 00:16:00]} {[%emt 00:09:18]}
b6 {[%clk 00:25:33]} {[%emt 00:00:27]} 26. axb6 {[%clk 00:15:09]} {[%emt
00:01:21]} Qxb6 {[%clk 00:26:01]} {[%emt 00:00:02]} 27. Ne2 {[%clk 00:14:54]}
{[%emt 00:00:45]} a5 {[%clk 00:24:08]} {[%emt 00:02:23]} 28. Ne3 {[%clk
00:13:55]} {[%emt 00:01:29]} Qb4 {[%clk 00:18:40]} {[%emt 00:05:57]} 29. Nc3
{[%clk 00:12:34]} {[%emt 00:01:52]} h5 {[%clk 00:12:31]} {[%emt 00:06:39]} 30.
Qc2 {[%clk 00:11:01]} {[%emt 00:02:02]} Kg7 {[%clk 00:11:41]} {[%emt 00:01:21]}
31. Kf2 {[%clk 00:09:03]} {[%emt 00:02:28]} Qb6 {[%clk 00:08:39]} {[%emt
00:03:31]} 32. Ne2 {[%clk 00:08:12]} {[%emt 00:01:21]} Qb4 {[%clk 00:07:35]}
{[%emt 00:01:35]} 33. Nc1 {[%clk 00:07:19]} {[%emt 00:01:23]} Ba4 {[%clk
00:04:08]} {[%emt 00:03:56]} 34. b3 {[%clk 00:07:01]} {[%emt 00:00:48]} Bd7
{[%clk 00:03:44]} {[%emt 00:00:54]} 35. Na2 {[%clk 00:06:28]} {[%emt 00:01:03]}
Qa3 {[%clk 00:03:45]} {[%emt 00:00:29]} 36. Qc3+ {[%clk 00:04:18]} {[%emt
00:02:40]} Kg8 {[%clk 00:04:14]} {[%emt 00:00:01]} 37. Bb1 {[%clk 00:04:16]}
{[%emt 00:00:32]} a4 {[%clk 00:04:09]} {[%emt 00:00:35]} 38. bxa4 {[%clk
00:04:17]} {[%emt 00:00:30]} Qxa4 {[%clk 00:04:37]} {[%emt 00:00:01]} 39. Qb2
{[%clk 00:04:22]} {[%emt 00:00:24]} Qa5 {[%clk 00:04:12]} {[%emt 00:00:57]} 40.
Nc3 {[%clk 00:04:02]} {[%emt 00:00:49]} Qd8 {[%clk 00:03:58]} {[%emt 00:00:44]}
41. Ne2 {[%clk 00:29:59]} {[%emt 00:04:33]} Qh4+ {[%clk 00:32:42]} {[%emt
00:01:46]} 42. Kf1 {[%clk 00:24:40]} {[%emt 00:05:48]} Qe7 {[%clk 00:30:57]}
{[%emt 00:02:16]} 43. Qc3 {[%clk 00:22:56]} {[%emt 00:02:15]} Nh7 {[%clk
00:26:24]} {[%emt 00:05:03]} 44. Nd1 {[%clk 00:17:33]} {[%emt 00:05:52]} Nf6
{[%clk 00:23:14]} {[%emt 00:03:40]} 45. Nf2 {[%clk 00:17:15]} {[%emt 00:00:48]}
h4 {[%clk 00:22:37]} {[%emt 00:01:08]} 46. Qf3 {[%clk 00:14:33]} {[%emt
00:03:12]} Nh5 {[%clk 00:21:40]} {[%emt 00:01:27]} 47. g4 {[%clk 00:13:08]}
{[%emt 00:01:55]} hxg3 {[%clk 00:21:09]} {[%emt 00:01:00]} 48. Nxg3 {[%clk
00:13:17]} {[%emt 00:00:21]} Nxg3+ {[%clk 00:19:49]} {[%emt 00:01:50]} 49. Qxg3
{[%clk 00:13:41]} {[%emt 00:00:06]} Qf6 {[%clk 00:20:13]} {[%emt 00:00:06]} 50.
Bd3 {[%clk 00:11:39]} {[%emt 00:02:32]} Kh7 {[%clk 00:18:37]} {[%emt 00:02:05]}
51. h4 {[%clk 00:11:02]} {[%emt 00:01:08]} Qd4 {[%clk 00:16:02]} {[%emt
00:03:05]} 52. Kg2 {[%clk 00:09:40]} {[%emt 00:01:52]} Bc8 {[%clk 00:14:12]}
{[%emt 00:02:20]} 53. Qf3 {[%clk 00:08:00]} {[%emt 00:02:10]} Kg7 {[%clk
00:13:06]} {[%emt 00:01:37]} 54. Nh3 {[%clk 00:06:48]} {[%emt 00:01:41]} Qb2+
{[%clk 00:09:07]} {[%emt 00:04:29]} 55. Kg3 {[%clk 00:05:27]} {[%emt 00:01:52]}
Qc1 {[%clk 00:08:03]} {[%emt 00:01:33]} 56. Qe2 {[%clk 00:04:29]} {[%emt
00:01:27]} Qa1 {[%clk 00:07:12]} {[%emt 00:01:23]} 57. Qe3 {[%clk 00:03:04]}
{[%emt 00:01:54]} Qc3 {[%clk 00:06:26]} {[%emt 00:01:15]} 58. Ng5 {[%clk
00:02:41]} {[%emt 00:00:54]} Nxg5 {[%clk 00:06:35]} {[%emt 00:00:21]} 59. hxg5
{[%clk 00:03:06]} {[%emt 00:00:06]} Kf7 {[%clk 00:06:29]} {[%emt 00:00:36]} 60.
Kf2 {[%clk 00:03:09]} {[%emt 00:00:26]} Qb2+ {[%clk 00:06:16]} {[%emt
00:00:42]} 61. Be2 {[%clk 00:03:17]} {[%emt 00:00:22]} Bd7 {[%clk 00:06:25]}
{[%emt 00:00:21]} 62. Kg3 {[%clk 00:03:02]} {[%emt 00:00:45]} Bc8 {[%clk
00:06:10]} {[%emt 00:00:46]} 1/2-1/2

[Event "The Elitserien 2024/25: round 1 - 3"]
[Site "Scandic Infra City, Kanalvagen 10, Upplands Vasby, Sweden"]
[Date "2024.10.05"]
[Round "2.15"]
[White "Mattsson, Michael"]
[Black "Rajcevski, Dejan"]
[Result "0-1"]
[TimeControl "90 minutes for 40 moves + 30 minutes for the rest of the game + 30 seconds per move from move one."]
[WhiteFideId "1708961"]
[BlackFideId "1759027"]
[WhiteElo "1977"]
[BlackElo "2131"]

1. e4 {[%clk 01:30:03]} {[%emt 00:00:55]} e5 {[%clk 01:30:41]} {[%emt
00:00:19]} 2. Nf3 {[%clk 01:30:27]} {[%emt 00:00:08]} Nf6 {[%clk 01:31:06]}
{[%emt 00:00:05]} 3. Nxe5 {[%clk 01:30:41]} {[%emt 00:00:16]} d6 {[%clk
01:31:26]} {[%emt 00:00:10]} 4. Nf3 {[%clk 01:31:08]} {[%emt 00:00:03]} Nxe4
{[%clk 01:31:49]} {[%emt 00:00:07]} 5. d4 {[%clk 01:31:21]} {[%emt 00:00:17]}
d5 {[%clk 01:32:12]} {[%emt 00:00:08]} 6. Bd3 {[%clk 01:31:46]} {[%emt
00:00:04]} Bd6 {[%clk 01:32:22]} {[%emt 00:00:19]} 7. c4 {[%clk 01:31:52]}
{[%emt 00:00:25]} c6 {[%clk 01:32:33]} {[%emt 00:00:18]} 8. O-O {[%clk
01:32:13]} {[%emt 00:00:10]} O-O {[%clk 01:32:52]} {[%emt 00:00:11]} 9. Nc3
{[%clk 01:32:32]} {[%emt 00:00:10]} Nxc3 {[%clk 01:32:47]} {[%emt 00:00:35]} 10.
bxc3 {[%clk 01:32:57]} {[%emt 00:00:05]} dxc4 {[%clk 01:33:06]} {[%emt
00:00:11]} 11. Bxc4 {[%clk 01:33:17]} {[%emt 00:00:10]} Bg4 {[%clk 01:28:21]}
{[%emt 00:05:14]} 12. h3 {[%clk 01:32:56]} {[%emt 00:00:52]} Bh5 {[%clk
01:28:15]} {[%emt 00:00:37]} 13. Rb1 {[%clk 01:29:37]} {[%emt 00:03:49]} b5
{[%clk 01:26:29]} {[%emt 00:02:15]} 14. Bd3 {[%clk 01:29:48]} {[%emt 00:00:20]}
Nd7 {[%clk 01:24:30]} {[%emt 00:02:28]} 15. g4 {[%clk 01:29:02]} {[%emt
00:01:16]} Bg6 {[%clk 01:24:37]} {[%emt 00:00:22]} 16. Bxg6 {[%clk 01:29:27]}
{[%emt 00:00:05]} hxg6 {[%clk 01:24:43]} {[%emt 00:00:25]} 17. Bg5 {[%clk
01:24:34]} {[%emt 00:05:22]} Qa5 {[%clk 01:18:24]} {[%emt 00:06:50]} 18. Qc2
{[%clk 01:19:35]} {[%emt 00:05:29]} Rfe8 {[%clk 01:14:36]} {[%emt 00:04:17]} 19.
c4 {[%clk 01:14:13]} {[%emt 00:05:53]} Rac8 {[%clk 01:07:39]} {[%emt 00:07:27]}
20. Rfe1 {[%clk 01:03:48]} {[%emt 00:10:56]} a6 {[%clk 00:56:38]} {[%emt
00:11:30]} 21. Bd2 {[%clk 01:00:08]} {[%emt 00:04:10]} Qc7 {[%clk 00:48:15]}
{[%emt 00:08:52]} 22. Kg2 {[%clk 00:52:23]} {[%emt 00:08:16]} Nf8 {[%clk
00:40:35]} {[%emt 00:08:10]} 23. Ng5 {[%clk 00:46:52]} {[%emt 00:06:01]} Bf4
{[%clk 00:39:02]} {[%emt 00:02:03]} 24. c5 {[%clk 00:28:33]} {[%emt 00:18:50]}
Bxg5 {[%clk 00:38:41]} {[%emt 00:00:49]} 25. Bxg5 {[%clk 00:28:36]} {[%emt
00:00:28]} Ne6 {[%clk 00:38:53]} {[%emt 00:00:18]} 26. Qd2 {[%clk 00:26:13]}
{[%emt 00:02:54]} Qd7 {[%clk 00:37:05]} {[%emt 00:02:17]} 27. Be3 {[%clk
00:23:38]} {[%emt 00:03:04]} Rcd8 {[%clk 00:33:47]} {[%emt 00:03:48]} 28. Red1
{[%clk 00:22:54]} {[%emt 00:01:15]} Qd5+ {[%clk 00:31:59]} {[%emt 00:02:18]} 29.
f3 {[%clk 00:20:48]} {[%emt 00:02:36]} Nxc5 {[%clk 00:27:38]} {[%emt 00:04:51]}
30. Qf2 {[%clk 00:12:33]} {[%emt 00:08:45]} Na4 {[%clk 00:24:44]} {[%emt
00:03:24]} 31. Rdc1 {[%clk 00:12:03]} {[%emt 00:01:00]} Re6 {[%clk 00:19:23]}
{[%emt 00:05:50]} 32. Rb3 {[%clk 00:10:32]} {[%emt 00:02:01]} Nb6 {[%clk
00:17:08]} {[%emt 00:02:45]} 33. Rc5 {[%clk 00:09:20]} {[%emt 00:01:42]} Qd6
{[%clk 00:16:49]} {[%emt 00:00:49]} 34. Re5 {[%clk 00:09:09]} {[%emt 00:00:42]}
Nc4 {[%clk 00:16:13]} {[%emt 00:01:06]} 35. Bg5 {[%clk 00:04:55]} {[%emt
00:04:43]} f6 {[%clk 00:08:39]} {[%emt 00:08:04]} 36. Rxe6 {[%clk 00:02:12]}
{[%emt 00:03:14]} Qxe6 {[%clk 00:09:00]} {[%emt 00:00:09]} 37. Bf4 {[%clk
00:02:07]} {[%emt 00:00:34]} Re8 {[%clk 00:08:31]} {[%emt 00:00:59]} 38. Kf1
{[%clk 00:01:34]} {[%emt 00:01:03]} g5 {[%clk 00:07:00]} {[%emt 00:02:02]} 39.
Bc1 {[%clk 00:01:53]} {[%emt 00:00:10]} a5 {[%clk 00:05:50]} {[%emt 00:01:40]}
40. Rd3 {[%clk 00:01:16]} {[%emt 00:01:07]} a4 {[%clk 00:04:32]} {[%emt
00:01:48]} 41. a3 {[%clk 00:26:32]} {[%emt 00:05:14]} Qd5 {[%clk 00:30:21]}
{[%emt 00:04:41]} 42. Qc2 {[%clk 00:24:25]} {[%emt 00:02:37]} Rd8 {[%clk
00:28:34]} {[%emt 00:02:17]} 43. Bb2 {[%clk 00:22:24]} {[%emt 00:02:31]} Ne5
{[%clk 00:26:31]} {[%emt 00:02:33]} 44. Rc3 {[%clk 00:20:48]} {[%emt 00:02:06]}
Qxd4 {[%clk 00:23:38]} {[%emt 00:03:23]} 45. Rxc6 {[%clk 00:20:06]} {[%emt
00:01:13]} Qd3+ {[%clk 00:23:47]} {[%emt 00:00:21]} 46. Qxd3 {[%clk 00:19:54]}
{[%emt 00:00:41]} Nxd3 {[%clk 00:23:40]} {[%emt 00:00:38]} 47. Bc3 {[%clk
00:19:25]} {[%emt 00:00:59]} Nf4 {[%clk 00:22:24]} {[%emt 00:01:45]} 48. Rc5
{[%clk 00:15:47]} {[%emt 00:04:09]} Rb8 {[%clk 00:19:17]} {[%emt 00:03:37]} 49.
Bd2 {[%clk 00:10:44]} {[%emt 00:05:33]} Nxh3 {[%clk 00:18:38]} {[%emt
00:01:09]} 50. Ke2 {[%clk 00:09:55]} {[%emt 00:01:19]} Nf4+ {[%clk 00:17:24]}
{[%emt 00:01:44]} 51. Kd1 {[%clk 00:09:07]} {[%emt 00:01:17]} Nd3 {[%clk
00:16:55]} {[%emt 00:00:59]} 52. Rd5 {[%clk 00:07:19]} {[%emt 00:02:19]} Nb2+
{[%clk 00:16:08]} {[%emt 00:01:16]} 53. Ke2 {[%clk 00:04:42]} {[%emt 00:03:07]}
Re8+ {[%clk 00:14:19]} {[%emt 00:02:19]} 54. Kf1 {[%clk 00:04:38]} {[%emt
00:00:35]} Nc4 {[%clk 00:14:22]} {[%emt 00:00:27]} 55. Kf2 {[%clk 00:02:44]}
{[%emt 00:02:24]} Nxd2 {[%clk 00:13:39]} {[%emt 00:01:13]} 56. Rxd2 {[%clk
00:03:10]} {[%emt 00:00:04]} Kf7 {[%clk 00:13:08]} {[%emt 00:01:01]} 57. Rd7+
{[%clk 00:03:18]} {[%emt 00:00:21]} Re7 {[%clk 00:13:20]} {[%emt 00:00:19]} 58.
Rd5 {[%clk 00:03:37]} {[%emt 00:00:11]} Re5 {[%clk 00:12:20]} {[%emt 00:01:29]}
59. Rd7+ {[%clk 00:04:01]} {[%emt 00:00:07]} Re7 {[%clk 00:12:03]} {[%emt
00:00:46]} 60. Rd5 {[%clk 00:04:27]} {[%emt 00:00:05]} Rb7 {[%clk 00:12:18]}
{[%emt 00:00:14]} 61. Ke3 {[%clk 00:04:03]} {[%emt 00:00:54]} Ke6 {[%clk
00:10:54]} {[%emt 00:01:54]} 62. Rc5 {[%clk 00:04:30]} {[%emt 00:00:04]} Kd6
{[%clk 00:10:35]} {[%emt 00:00:49]} 63. Rf5 {[%clk 00:04:33]} {[%emt 00:00:27]}
Kc6 {[%clk 00:10:29]} {[%emt 00:00:36]} 64. f4 {[%clk 00:03:09]} {[%emt
00:01:54]} Re7+ {[%clk 00:10:24]} {[%emt 00:00:34]} 65. Kd4 {[%clk 00:02:03]}
{[%emt 00:01:37]} Rd7+ {[%clk 00:09:26]} {[%emt 00:01:27]} 66. Ke4 {[%clk
00:02:19]} {[%emt 00:00:15]} gxf4 {[%clk 00:09:11]} {[%emt 00:00:44]} 67. g5
{[%clk 00:02:33]} {[%emt 00:00:16]} Re7+ {[%clk 00:09:04]} {[%emt 00:00:37]} 68.
Kxf4 {[%clk 00:00:43]} {[%emt 00:02:20]} Re5 {[%clk 00:08:05]} {[%emt
00:01:29]} 69. g6 {[%clk 00:00:32]} {[%emt 00:00:41]} Rxf5+ {[%clk 00:08:06]}
{[%emt 00:00:29]} 70. Kxf5 {[%clk 00:01:00]} {[%emt 00:00:02]} Kd5 {[%clk
00:08:18]} {[%emt 00:00:18]} 0-1